[Event "LEM Sachsen-Anhalt Masters 2024"]
[Site "Merseburg"]
[Date "2024.02.10"]
[Round "6.2"]
[White "Ahmed, Daniel"]
[Black "Haubold, Christian"]
[Result "1-0"]
[ECO "E65"]
[WhiteElo "1994"]
[BlackElo "1990"]
[Annotator "NA RC"]
[PlyCount "81"]
[EventDate "2024.02.01"]
[EventType "swiss"]
[EventCountry "GER"]
[SourceTitle "playchess.com"]
[Source "ChessBase"]
[SourceQuality "1"]
[TimeControl "40/5400+30:1800+30"]

1. d4 {[%emt 0:00:03]} Nf6 {[%emt 0:00:07]} 2. Nf3 {[%emt 0:00:18]} g6 {[%emt 0:00:10]} 3. g3 {[%emt 0:00:18]} Bg7 {[%emt 0:00:15]} 4. Bg2 {[%emt 0:00:12]} O-O {[%emt 0:00:12]} 5. O-O {[%emt 0:00:09]} d6 {[%emt 0:00:22]} 6. c4 {[%emt 0:02:18]} c5 {[%emt 0:01:52]} 7. Nc3 {[%emt 0:02:16]} Nbd7 {[%emt 0:07:55]} 8. b3 {[%emt 0:00:52]} Qa5 {[%emt 0:02:37]} 9. Bb2 {[%emt 0:01:46]} a6 {[%emt 0:11:36]} 10. a4 {[%emt 0:01:39]} cxd4 {[%emt 0:08:38]} 11. Nxd4 {[%emt 0:00:12]} Qh5 {[%emt 0:01:04]} 12. e3 {[%emt 0:15:07]} Qh6 {[%emt 0:04:29]} 13. Nf3 {[%emt 0:02:44]} Ng4 {[%emt 0:03:31]} 14. Qe2 {[%emt 0:13:21]} Nde5 {[%emt 0:02:11]} 15. h4 {[%emt 0:00:02]} Nxf3+ {[%emt 0:18:15]} 16. Bxf3 {[%emt 0:00:05]} Ne5 {[%emt 0:00:44]} 17. Bg2 {[%emt 0:00:11]} Bg4 {[%emt 0:04:03]} 18. f3 {[%emt 0:00:41]} Be6 {[%emt 0:01:00]} 19. Rad1 {[%emt 0:01:43]} Nc6 {[%emt 0:11:14]} 20. Kf2 {[%emt 0:06:14]} Nb4 {[%emt 0:02:30]} 21. f4 {[%emt 0:09:03]} Rab8 {[%emt 0:02:22]} 22. Rh1 {[%emt 0:09:20]} f5 {[%emt 0:01:57]} 23. Nd5 {[%emt 0:10:04]} Bxd5 {[%emt 0:01:07]} 24. Bxd5+ {[%emt 0:00:12]} Kh8 {[%emt 0:01:58]} 25. Ba3 {[%emt 0:04:02]} a5 {[%emt 0:03:36]} 26. Bxb4 {[%emt 0:09:30]} axb4 {[%emt 0:00:01]} 27. Qf3 {[%emt 0:02:30]} e5 {[%emt 0:02:20]} 28. Qg2 {[%emt 0:01:30]} e4 {[%emt 0:00:35]} 29. g4 {[%emt 0:00:24]} fxg4 {[%emt 0:04:26]} 30. Qxg4 {[%emt 0:02:04]} Rbe8 {[%emt 0:01:22]} 31. Ke2 {[%emt 0:03:29]} Re7 {[%emt 0:01:11]} 32. h5 {[%emt 0:00:56]} gxh5 {[%emt 0:00:23]} 33. Rxh5 {[%emt 0:00:04]} Qf6 {[%emt 0:00:05]} 34. Rd4 {[%emt 0:01:19]} h6 {[%emt 0:00:47]} 35. Bxe4 {[%emt 0:00:32]} Rxe4 {[%emt 0:01:25]} 36. Rxe4 {[%emt 0:00:05]} Qb2+ {[%emt 0:00:05]} 37. Kf3 {[%emt 0:00:24]} Qxb3 {[%emt 0:00:02]} 38. Qg1 {[%emt 0:01:30]} Qc3 {[%emt 0:01:01]} 39. Re7 {[%emt 0:00:52]} b3 {[%emt 0:00:36]} 40. Qg6 {[%emt 0:00:11]} Qf6 {[%emt 0:01:24]} 41. Rxh6+ {[%emt 0:30:16]} 1-0

[Event "LEM Sachsen-Anhalt Masters 2024"]
[Site "Merseburg"]
[Date "2024.02.10"]
[Round "6.3"]
[White "Groebel, Aaron"]
[Black "Lippert, Daniel"]
[Result "1-0"]
[ECO "B59"]
[WhiteElo "2087"]
[BlackElo "2034"]
[Annotator "NA RC"]
[PlyCount "119"]
[EventDate "2024.02.01"]
[EventType "swiss"]
[EventCountry "GER"]
[SourceTitle "playchess.com"]
[Source "ChessBase"]
[SourceQuality "1"]
[TimeControl "40/5400+30:1800+30"]

1. e4 {[%emt 0:00:05]} c5 {[%emt 0:00:04]} 2. Nf3 {[%emt 0:00:16]} Nc6 {[%emt 0:00:04]} 3. d4 {[%emt 0:00:13]} cxd4 {[%emt 1:31:52]} 4. Nxd4 {[%emt 0:02:10]} Nf6 {[%emt 0:00:00]} 5. Nc3 {[%emt 0:00:11]} d6 {[%emt 0:00:00]} 6. Be2 {[%emt 0:02:15]} e5 {[%emt 0:00:00]} 7. Nb3 {[%emt 0:05:13]} Be6 {[%emt 0:00:00]} 8. Bf3 {[%emt 0:04:07]} Be7 {[%emt 0:00:00]} 9. Bg5 {[%emt 0:11:40]} O-O {[%emt 0:00:00]} 10. Qd2 {[%emt 0:01:12]} a5 {[%emt 0:00:00]} 11. Rd1 {[%emt 0:04:31]} a4 {[%emt 0:00:00]} 12. Nc1 {[%emt 0:00:26]} Nd4 {[%emt 0:00:00]} 13. N1e2 {[%emt 0:00:36]} Nxe2 {[%emt 0:00:00]} 14. Bxe2 {[%emt 0:09:34]} a3 {[%emt 0:00:00]} 15. b3 {[%emt 0:01:55]} Qc7 {[%emt 0:00:00]} 16. Bd3 {[%emt 0:18:22]} d5 {[%emt 0:00:00]} 17. Bxf6 {[%emt 0:04:36]} Bxf6 {[%emt 0:00:00]} 18. exd5 {[%emt 0:01:56]} Bg4 {[%emt 0:00:18]} 19. Rb1 {[%emt 0:15:10]} g6 {[%emt 0:03:24]} 20. O-O {[%emt 0:01:51]} Bf5 {[%emt 0:01:03]} 21. Bxf5 {[%emt 0:04:42]} gxf5 {[%emt 0:00:05]} 22. Ne2 {[%emt 0:00:04]} f4 {[%emt 0:00:38]} 23. c4 {[%emt 0:01:10]} Kh8 {[%emt 0:00:20]} 24. d6 {[%emt 0:02:48]} Qc6 {[%emt 0:00:13]} 25. Qd5 {[%emt 0:02:36]} Qxd5 {[%emt 0:00:23]} 26. cxd5 {[%emt 0:00:01]} Rfd8 {[%emt 0:02:05]} 27. Nc3 {[%emt 0:00:02]} Bg7 {[%emt 0:00:32]} 28. Rbc1 {[%emt 0:03:24]} Rxd6 {[%emt 0:00:24]} 29. Nb5 {[%emt 0:00:06]} Rd7 {[%emt 0:00:40]} 30. Rfd1 {[%emt 0:01:30]} e4 {[%emt 0:01:32]} 31. Rc7 {[%emt 0:01:25]} Rxc7 {[%emt 0:00:29]} 32. Nxc7 {[%emt 0:00:01]} Rd8 {[%emt 0:00:01]} 33. Nb5 {[%emt 0:01:36]} Bb2 {[%emt 0:00:05]} 34. Kf1 {[%emt 0:00:31]} Kg7 {[%emt 0:00:08]} 35. Ke2 {[%emt 0:00:20]} f5 {[%emt 0:01:25]} 36. Nc7 {[%emt 0:00:32]} Kf6 {[%emt 0:01:42]} 37. Ne6 {[%emt 0:00:02]} Rg8 {[%emt 0:00:36]} 38. Nxf4 {[%emt 0:00:49]} Be5 {[%emt 0:00:17]} 39. g3 {[%emt 0:00:58]} Bxf4 {[%emt 0:00:39]} 40. gxf4 {[%emt 0:00:02]} Ke7 {[%emt 0:00:41]} 41. d6+ {[%emt 0:05:30]} Kd7 {[%emt 0:08:10]} 42. Rd5 {[%emt 0:01:29]} Rc8 {[%emt 0:01:36]} 43. Kd2 {[%emt 0:01:19]} Rc6 {[%emt 0:01:25]} 44. Rxf5 {[%emt 0:00:48]} Rxd6+ {[%emt 0:00:42]} 45. Ke3 {[%emt 0:01:00]} Rd1 {[%emt 0:12:25]} 46. Ra5 {[%emt 0:15:02]} Re1+ {[%emt 0:00:36]} 47. Kd2 {[%emt 0:00:25]} Rh1 {[%emt 0:00:06]} 48. Rxa3 {[%emt 0:00:09]} Rxh2 {[%emt 0:03:24]} 49. Ke3 {[%emt 0:00:08]} Rh1 {[%emt 0:01:29]} 50. Kxe4 {[%emt 0:02:00]} h5 {[%emt 0:00:06]} 51. Ra7 {[%emt 0:00:53]} Kc6 {[%emt 0:00:53]} 52. f5 {[%emt 0:00:28]} Rg1 {[%emt 0:01:10]} 53. f6 {[%emt 0:01:32]} Rg8 {[%emt 0:00:48]} 54. Ra5 {[%emt 0:00:46]} b5 {[%emt 0:00:18]} 55. Ra6+ {[%emt 0:02:22]} Kc5 {[%emt 0:01:14]} 56. f7 {[%emt 0:00:11]} Rh8 {[%emt 0:00:31]} 57. Rf6 {[%emt 0:00:06]} Rf8 {[%emt 0:00:09]} 58. Ke5 {[%emt 0:00:20]} Kb4 {[%emt 0:00:40]} 59. Ke6 {[%emt 0:00:17]} Ka3 {[%emt 0:00:23]} 60. Ke7 {[%emt 0:00:04]} 1-0

[Event "LEM Sachsen-Anhalt Masters 2024"]
[Site "Merseburg"]
[Date "2024.02.10"]
[Round "6.4"]
[White "Haubold, Sebastian"]
[Black "Polzin, Gustav"]
[Result "1-0"]
[ECO "B06"]
[WhiteElo "2055"]
[BlackElo "1895"]
[Annotator "NA RC"]
[PlyCount "93"]
[EventDate "2024.02.01"]
[EventType "swiss"]
[EventCountry "GER"]
[SourceTitle "playchess.com"]
[Source "ChessBase"]
[SourceQuality "1"]
[TimeControl "40/5400+30:1800+30"]

1. e4 {[%emt 0:00:14]} g6 {[%emt 0:00:09]} 2. d4 {[%emt 0:00:13]} Bg7 {[%emt 0:00:08]} 3. Nc3 {[%emt 0:00:11]} d6 {[%emt 0:00:37]} 4. Be3 {[%emt 0:00:31]} Nd7 {[%emt 0:00:33]} 5. Qd2 {[%emt 0:00:23]} e5 {[%emt 0:00:38]} 6. O-O-O {[%emt 0:02:42]} a6 {[%emt 0:01:12]} 7. f4 {[%emt 0:11:28]} exf4 {[%emt 0:01:04]} 8. Bxf4 {[%emt 0:00:09]} b5 {[%emt 0:01:32]} 9. Nf3 {[%emt 0:07:06]} Bb7 {[%emt 0:01:08]} 10. Bd3 {[%emt 0:02:16]} Ne7 {[%emt 0:01:09]} 11. Bh6 {[%emt 0:01:27]} O-O {[%emt 0:00:09]} 12. h4 {[%emt 0:01:10]} Nf6 {[%emt 0:03:12]} 13. h5 {[%emt 0:10:26]} b4 {[%emt 0:10:33]} 14. Nd5 {[%emt 0:02:07]} Nexd5 {[%emt 0:05:21]} 15. exd5 {[%emt 0:00:28]} Bxh6 {[%emt 0:03:39]} 16. Qxh6 {[%emt 0:00:02]} Ng4 {[%emt 0:04:13]} 17. Qf4 {[%emt 0:17:03]} Qd7 {[%emt 0:11:42]} 18. Rh4 {[%emt 0:05:55]} Nf2 {[%emt 0:05:04]} 19. Qh6 {[%emt 0:01:28]} Ng4 {[%emt 0:03:22]} 20. Rxg4 {[%emt 0:00:24]} Qxg4 {[%emt 0:00:24]} 21. Rh1 {[%emt 0:00:06]} Qd7 {[%emt 0:04:38]} 22. hxg6 {[%emt 0:00:43]} fxg6 {[%emt 0:00:29]} 23. Bxg6 {[%emt 0:00:04]} Qg7 {[%emt 0:09:10]} 24. Bxh7+ {[%emt 0:00:32]} Kh8 {[%emt 0:00:08]} 25. Qe6 {[%emt 0:02:09]} Qxh7 {[%emt 0:02:07]} 26. Rxh7+ {[%emt 0:00:07]} Kxh7 {[%emt 0:00:02]} 27. Qd7+ {[%emt 0:00:28]} Kg6 {[%emt 0:01:15]} 28. Qxc7 {[%emt 0:00:24]} Rab8 {[%emt 0:00:52]} 29. Qxd6+ {[%emt 0:00:17]} Kh5 {[%emt 0:00:51]} 30. Qe5+ {[%emt 0:00:55]} Kh6 {[%emt 0:00:10]} 31. Qg5+ {[%emt 0:01:19]} Kh7 {[%emt 0:00:11]} 32. Ne5 {[%emt 0:02:24]} Bxd5 {[%emt 0:00:35]} 33. Nd7 {[%emt 0:00:12]} Rf1+ {[%emt 0:00:32]} 34. Kd2 {[%emt 0:00:04]} Rg8 {[%emt 0:01:18]} 35. Nf6+ {[%emt 0:01:18]} Rxf6 {[%emt 0:00:02]} 36. Qxf6 {[%emt 0:00:07]} Rxg2+ {[%emt 0:00:03]} 37. Ke1 {[%emt 0:00:06]} Bxa2 {[%emt 0:00:30]} 38. Qxa6 {[%emt 0:01:14]} b3 {[%emt 0:00:52]} 39. Qb7+ {[%emt 0:00:07]} Rg7 {[%emt 0:00:06]} 40. Qh1+ {[%emt 0:00:26]} Kg6 {[%emt 0:00:39]} 41. c4 {[%emt 0:30:13]} Kf6 {[%emt 0:31:56]} 42. c5 {[%emt 0:01:57]} Rg3 {[%emt 0:00:58]} 43. Qh4+ {[%emt 0:00:10]} Rg5 {[%emt 0:00:17]} 44. c6 {[%emt 0:00:13]} Bb1 {[%emt 0:00:21]} 45. d5 {[%emt 0:00:48]} Bf5 {[%emt 0:02:02]} 46. d6 {[%emt 0:00:11]} Kg6 {[%emt 0:00:16]} 47. Qxg5+ {[%emt 0:00:06]} 1-0

[Event "LEM Sachsen-Anhalt Masters 2024"]
[Site "Merseburg"]
[Date "2024.02.10"]
[Round "6.5"]
[White "Daub, Sebastian"]
[Black "Noennig, Jakob"]
[Result "1/2-1/2"]
[ECO "D05"]
[WhiteElo "1967"]
[BlackElo "1789"]
[Annotator "NA RC"]
[PlyCount "130"]
[EventDate "2024.02.01"]
[EventType "swiss"]
[EventCountry "GER"]
[SourceTitle "playchess.com"]
[Source "ChessBase"]
[SourceQuality "1"]
[TimeControl "40/5400+30:1800+30"]

1. Nf3 {[%emt 0:01:32]} d5 {[%emt 0:00:09]} 2. d4 {[%emt 0:00:11]} Nf6 {[%emt 0:00:10]} 3. c3 {[%emt 0:00:17]} e6 {[%emt 0:01:56]} 4. e3 {[%emt 0:01:28]} Bd6 {[%emt 0:03:08]} 5. Bd3 {[%emt 0:00:40]} O-O {[%emt 0:00:13]} 6. O-O {[%emt 0:00:03]} c5 {[%emt 0:03:19]} 7. Nbd2 {[%emt 0:02:38]} Nc6 {[%emt 0:18:45]} 8. dxc5 {[%emt 0:01:14]} Bxc5 {[%emt 0:00:15]} 9. b4 {[%emt 0:00:02]} Bd6 {[%emt 0:02:02]} 10. b5 {[%emt 0:02:01]} Ne7 {[%emt 0:05:20]} 11. c4 {[%emt 0:06:41]} e5 {[%emt 0:07:53]} 12. cxd5 {[%emt 0:05:42]} Nexd5 {[%emt 0:01:21]} 13. Bb2 {[%emt 0:16:29]} Re8 {[%emt 0:25:39]} 14. e4 {[%emt 0:18:48]} Nf4 {[%emt 0:08:24]} 15. Bc4 {[%emt 0:04:21]} Bg4 {[%emt 0:02:01]} 16. Qb3 {[%emt 0:03:22]} Qe7 {[%emt 0:02:23]} 17. Rfe1 {[%emt 0:02:47]} Rac8 {[%emt 0:01:44]} 18. Ng5 {[%emt 0:09:14]} Rf8 {[%emt 0:03:34]} 19. f3 {[%emt 0:02:32]} Bd7 {[%emt 0:03:28]} 20. g3 {[%emt 0:01:36]} Bc5+ {[%emt 0:02:08]} 21. Kh1 {[%emt 0:00:39]} Nh3 {[%emt 0:00:52]} 22. Nxf7 {[%emt 0:06:01]} Nf2+ {[%emt 0:01:35]} 23. Kg1 {[%emt 0:01:12]} N2xe4+ {[%emt 0:01:24]} 24. Kg2 {[%emt 0:01:08]} Nxd2 {[%emt 0:00:56]} 25. Nxe5+ {[%emt 0:05:17]} Kh8 {[%emt 0:00:18]} 26. Qd3 {[%emt 0:01:13]} Nxc4 {[%emt 0:01:03]} 27. Ng6+ {[%emt 0:00:11]} hxg6 {[%emt 0:00:14]} 28. Rxe7 {[%emt 0:00:04]} Bxe7 {[%emt 0:00:08]} 29. Bxf6 {[%emt 0:00:09]} Bxf6 {[%emt 0:00:20]} 30. Qxd7 {[%emt 0:00:23]} Ne3+ {[%emt 0:01:34]} 31. Kf2 {[%emt 0:00:38]} Nf5 {[%emt 0:00:44]} 32. Re1 {[%emt 0:04:30]} Rfd8 {[%emt 0:02:15]} 33. Qxb7 {[%emt 0:01:13]} Rd2+ {[%emt 0:00:28]} 34. Re2 {[%emt 0:01:02]} Rcc2 {[%emt 0:00:54]} 35. Rxd2 {[%emt 0:00:02]} Rxd2+ {[%emt 0:00:01]} 36. Ke1 {[%emt 0:00:13]} Rxa2 {[%emt 0:01:06]} 37. Qa8+ {[%emt 0:00:15]} Kh7 {[%emt 0:00:10]} 38. b6 {[%emt 0:00:01]} Ne3 {[%emt 0:01:00]} 39. Qc8 {[%emt 0:01:39]} Ng2+ {[%emt 0:00:28]} 40. Kd1 {[%emt 0:01:23]} Ne3+ {[%emt 0:00:26]} 41. Kc1 {[%emt 0:13:50]} Ra1+ {[%emt 0:05:13]} 42. Kd2 {[%emt 0:00:02]} Nf1+ {[%emt 0:00:18]} 43. Kd3 {[%emt 0:01:21]} axb6 {[%emt 0:02:14]} 44. Qh3+ {[%emt 0:00:14]} Kg8 {[%emt 0:00:08]} 45. Qe6+ {[%emt 0:01:39]} Kh7 {[%emt 0:02:00]} 46. Qh3+ {[%emt 0:00:08]} Kg8 {[%emt 0:00:05]} 47. Qe6+ {[%emt 0:00:04]} Kf8 {[%emt 0:03:57]} 48. Qd6+ {[%emt 0:00:48]} Be7 {[%emt 0:07:00]} 49. Qxb6 {[%emt 0:02:17]} Ra3+ {[%emt 0:02:01]} 50. Ke2 {[%emt 0:00:47]} Nxh2 {[%emt 0:01:03]} 51. Qb8+ {[%emt 0:03:46]} Kf7 {[%emt 0:00:18]} 52. Qf4+ {[%emt 0:00:04]} Kg8 {[%emt 0:00:34]} 53. Qc4+ {[%emt 0:00:13]} Kh7 {[%emt 0:01:44]} 54. Qe6 {[%emt 0:01:30]} Bf6 {[%emt 0:06:12]} 55. Qh3+ {[%emt 0:01:08]} Kg8 {[%emt 0:00:05]} 56. Qe6+ {[%emt 0:00:10]} Kf8 {[%emt 0:00:49]} 57. Qc8+ {[%emt 0:03:29]} Kf7 {[%emt 0:00:46]} 58. Qc4+ {[%emt 0:00:30]} Ke8 {[%emt 0:00:54]} 59. Qc8+ {[%emt 0:01:13]} Bd8 {[%emt 0:00:57]} 60. Qc6+ {[%emt 0:01:29]} Kf8 {[%emt 0:01:41]} 61. Qc5+ {[%emt 0:00:14]} Be7 {[%emt 0:00:11]} 62. Qc8+ {[%emt 0:00:03]} Kf7 {[%emt 0:00:08]} 63. Qc4+ {[%emt 0:00:20]} Kf6 {[%emt 0:00:51]} 64. Qd4+ {[%emt 0:01:26]} Kf7 {[%emt 0:01:32]} 65. Qc4+ {[%emt 0:00:12]} Kf6 {[%emt 0:00:11]} 1/2-1/2

[Event "LEM Sachsen-Anhalt Masters 2024"]
[Site "Merseburg"]
[Date "2024.02.10"]
[Round "6.6"]
[White "Wenzel, Thomas"]
[Black "Schulz, Maximilian"]
[Result "1/2-1/2"]
[ECO "B07"]
[WhiteElo "1747"]
[BlackElo "1896"]
[Annotator "NA RC"]
[PlyCount "35"]
[EventDate "2024.02.01"]
[EventType "swiss"]
[EventCountry "GER"]
[SourceTitle "playchess.com"]
[Source "ChessBase"]
[SourceQuality "1"]
[TimeControl "40/5400+30:1800+30"]

1. e4 {[%emt 0:00:26]} g6 {[%emt 0:00:21]} 2. d4 {[%emt 0:00:44]} Bg7 {[%emt 0:00:05]} 3. Nc3 {[%emt 0:00:29]} d6 {[%emt 0:00:35]} 4. Be3 {[%emt 0:04:05]} Nd7 {[%emt 0:03:49]} 5. Qd2 {[%emt 0:04:51]} c6 {[%emt 0:01:33]} 6. Nf3 {[%emt 0:05:34]} b5 {[%emt 0:06:21]} 7. Bd3 {[%emt 0:04:07]} Bb7 {[%emt 0:03:04]} 8. O-O {[%emt 0:06:45]} Ngf6 {[%emt 0:03:40]} 9. Bh6 {[%emt 0:02:00]} O-O {[%emt 0:00:45]} 10. Bxg7 {[%emt 0:05:25]} Kxg7 {[%emt 0:00:12]} 11. e5 {[%emt 0:11:58]} dxe5 {[%emt 0:01:52]} 12. Nxe5 {[%emt 0:02:57]} Qb6 {[%emt 0:06:16]} 13. Qe3 {[%emt 0:05:13]} Rad8 {[%emt 0:06:03]} 14. a3 {[%emt 0:04:32]} Bc8 {[%emt 0:18:58]} 15. h3 {[%emt 0:02:53]} Ng8 {[%emt 0:05:13]} 16. Rfe1 {[%emt 0:05:47]} Ndf6 {[%emt 0:03:34]} 17. Nf3 {[%emt 0:04:55]} Rfe8 {[%emt 0:01:54]} 18. Ne2 {[%emt 0:26:49]} 1/2-1/2

[Event "LEM Sachsen-Anhalt Masters 2024"]
[Site "Merseburg"]
[Date "2024.02.10"]
[Round "6.7"]
[White "Reipsch, Jens"]
[Black "Schellmann, Frank"]
[Result "1/2-1/2"]
[ECO "C56"]
[WhiteElo "2225"]
[BlackElo "1923"]
[Annotator "NA RC"]
[PlyCount "59"]
[EventDate "2024.02.01"]
[EventType "swiss"]
[EventCountry "GER"]
[SourceTitle "playchess.com"]
[Source "ChessBase"]
[SourceQuality "1"]
[TimeControl "40/5400+30:1800+30"]

1. e4 {[%emt 1:31:00]} e5 {[%emt 1:31:00]} 2. Nf3 Nc6 {[%emt 0:00:30]} 3. Bc4 {[%emt 0:01:00]} Nf6 {[%emt 0:00:30]} 4. d4 {[%emt 0:00:30]} exd4 {[%emt 0:00:30]} 5. O-O {[%emt 0:00:30]} Nxe4 {[%emt 0:00:30]} 6. Re1 {[%emt 0:00:30]} d5 {[%emt 0:00:30]} 7. Bxd5 {[%emt 0:00:30]} Qxd5 {[%emt 0:00:30]} 8. Nc3 {[%emt 0:00:30]} Qh5 {[%emt 0:00:30]} 9. Nxe4 {[%emt 0:00:30]} Be6 {[%emt 0:00:30]} 10. Bg5 {[%emt 0:00:30]} Bd6 {[%emt 0:00:30]} 11. Bf6 {[%emt 0:00:30]} Bxh2+ {[%emt 0:00:30]} 12. Nxh2 {[%emt 0:00:30]} Qxd1 {[%emt 0:00:30]} 13. Raxd1 {[%emt 0:00:30]} gxf6 {[%emt 0:00:30]} 14. Nxf6+ {[%emt 0:00:30]} Kf8 {[%emt 0:00:30]} 15. Nf3 {[%emt 0:00:30]} h5 {[%emt 0:00:30]} 16. Nxd4 {[%emt 0:00:30]} Nxd4 {[%emt 0:00:30]} 17. Rxd4 {[%emt 0:00:30]} Kg7 {[%emt 0:00:30]} 18. Nd5 {[%emt 0:00:30]} Rad8 {[%emt 0:00:30]} 19. Red1 {[%emt 0:00:30]} Rxd5 {[%emt 0:00:30]} 20. Rxd5 {[%emt 0:00:30]} Bxd5 {[%emt 0:00:30]} 21. Rxd5 Rh6 {[%emt 0:00:30]} 22. Kh2 {[%emt 0:01:00]} Rf6 {[%emt 0:00:30]} 23. f3 {[%emt 0:00:30]} Kg6 {[%emt 0:00:30]} 24. Kg3 {[%emt 0:00:30]} Rf5 {[%emt 0:00:30]} 25. Rd7 {[%emt 0:00:30]} Rc5 {[%emt 0:00:30]} 26. c3 {[%emt 0:00:30]} a5 {[%emt 0:00:30]} 27. Rd4 {[%emt 0:00:30]} Re5 {[%emt 0:00:30]} 28. Kf2 {[%emt 0:00:30]} Kf6 {[%emt 0:00:30]} 29. a4 {[%emt 0:00:30]} Ke6 {[%emt 0:00:30]} 30. g3 {[%emt 0:00:30]} 1/2-1/2

[Event "LEM Sachsen-Anhalt Masters 2024"]
[Site "Merseburg"]
[Date "2024.02.11"]
[Round "7.1"]
[White "Ahmed, Daniel"]
[Black "Haubold, Sebastian"]
[Result "1-0"]
[ECO "E94"]
[WhiteElo "1994"]
[BlackElo "2055"]
[Annotator "NA RC"]
[PlyCount "95"]
[EventDate "2024.02.01"]
[EventType "swiss"]
[EventCountry "GER"]
[SourceTitle "playchess.com"]
[Source "ChessBase"]
[SourceQuality "1"]
[TimeControl "40/5400+30:1800+30"]

1. d4 {[%emt 0:00:03]} Nf6 {[%emt 0:00:29]} 2. c4 {[%emt 0:00:12]} g6 {[%emt 0:00:15]} 3. Nc3 {[%emt 0:00:07]} Bg7 {[%emt 0:00:19]} 4. e4 {[%emt 0:00:18]} d6 {[%emt 0:00:22]} 5. Be2 {[%emt 0:00:09]} O-O {[%emt 0:00:53]} 6. Nf3 {[%emt 0:00:17]} e5 {[%emt 0:00:44]} 7. O-O {[%emt 0:00:18]} Nbd7 {[%emt 0:00:05]} 8. d5 {[%emt 0:02:23]} Qe7 {[%emt 0:01:37]} 9. Ne1 {[%emt 0:02:07]} c5 {[%emt 0:13:19]} 10. Be3 {[%emt 0:07:43]} Ne8 {[%emt 0:00:22]} 11. a3 {[%emt 0:01:39]} f5 {[%emt 0:05:04]} 12. f3 {[%emt 0:00:07]} f4 {[%emt 0:02:21]} 13. Bf2 {[%emt 0:00:52]} h5 {[%emt 0:12:52]} 14. b4 {[%emt 0:00:10]} b6 {[%emt 0:00:11]} 15. Nd3 {[%emt 0:02:51]} g5 {[%emt 0:15:58]} 16. a4 {[%emt 0:00:31]} a5 {[%emt 0:00:44]} 17. bxa5 {[%emt 0:00:14]} bxa5 {[%emt 0:00:43]} 18. Nb5 {[%emt 0:00:47]} Nb8 {[%emt 0:07:07]} 19. Nc1 {[%emt 0:00:49]} Na6 {[%emt 0:05:48]} 20. Nb3 {[%emt 0:01:34]} Nb4 {[%emt 0:01:08]} 21. Qd2 {[%emt 0:08:56]} Bd7 {[%emt 0:03:44]} 22. Rfd1 {[%emt 0:00:41]} g4 {[%emt 0:02:27]} 23. Nxd6 {[%emt 0:14:32]} Nxd6 {[%emt 0:01:17]} 24. Nxc5 {[%emt 0:01:17]} gxf3 {[%emt 0:05:17]} 25. gxf3 {[%emt 0:00:19]} Bh3 {[%emt 0:00:23]} 26. Kh1 {[%emt 0:01:02]} Rac8 {[%emt 0:01:02]} 27. Rac1 {[%emt 0:06:08]} Qe8 {[%emt 0:03:44]} 28. Rg1 {[%emt 0:08:43]} Kh7 {[%emt 0:01:14]} 29. Qd1 {[%emt 0:03:25]} Bf6 {[%emt 0:01:51]} 30. Nd3 {[%emt 0:03:00]} Nxd3 {[%emt 0:04:15]} 31. Bxd3 {[%emt 0:01:42]} Rg8 {[%emt 0:02:23]} 32. c5 {[%emt 0:01:18]} Rxg1+ {[%emt 0:00:16]} 33. Bxg1 {[%emt 0:02:17]} Qg6 {[%emt 0:01:03]} 34. Bf1 {[%emt 0:03:51]} Bxf1 {[%emt 0:01:11]} 35. Qxf1 {[%emt 0:00:02]} Nxe4 {[%emt 0:05:35]} 36. fxe4 {[%emt 0:00:21]} Qxe4+ {[%emt 0:00:09]} 37. Qg2 {[%emt 0:00:21]} Qf5 {[%emt 0:00:56]} 38. d6 {[%emt 0:07:24]} Rg8 {[%emt 0:00:46]} 39. Qc2 {[%emt 0:01:02]} e4 {[%emt 0:00:37]} 40. Re1 {[%emt 0:01:05]} Re8 {[%emt 0:01:15]} 41. c6 {[%emt 0:31:35]} Qh3 {[%emt 0:17:48]} 42. d7 {[%emt 0:00:00]} Qf3+ {[%emt 0:00:13]} 43. Qg2 {[%emt 0:00:00]} Qxg2+ {[%emt 0:00:06]} 44. Kxg2 {[%emt 0:00:00]} Rg8+ {[%emt 0:00:07]} 45. Kf1 {[%emt 0:00:00]} Bd8 {[%emt 0:00:17]} 46. Rxe4 {[%emt 0:00:00]} Bc7 {[%emt 0:00:05]} 47. Bd4 {[%emt 0:00:00]} Rg5 {[%emt 0:00:52]} 48. Be5 {[%emt 0:22:18]} 1-0

[Event "LEM Sachsen-Anhalt Masters 2024"]
[Site "Merseburg"]
[Date "2024.02.11"]
[Round "7.2"]
[White "Herter, Arne"]
[Black "Groebel, Aaron"]
[Result "0-1"]
[ECO "D05"]
[WhiteElo "2028"]
[BlackElo "2087"]
[Annotator "NA COMBH"]
[PlyCount "76"]
[EventDate "2024.02.01"]
[EventType "swiss"]
[EventCountry "GER"]
[SourceTitle "playchess.com"]
[Source "ChessBase"]
[SourceQuality "1"]
[TimeControl "40/5400+30:1800+30"]

1. e4 {[%emt 0:00:02]} c6 {[%emt 0:03:31]} 2. d4 {[%emt 0:00:29]} d5 {[%emt 0:00:13]} 3. Nc3 {[%emt 0:00:07]} dxe4 {[%emt 0:00:39]} 4. Nxe4 {[%emt 0:00:06]} Nd7 {[%emt 0:00:33]} 5. Ng5 {[%emt 0:00:42]} Ngf6 {[%emt 0:05:50]} 6. Bd3 {[%emt 0:00:18]} e6 {[%emt 0:00:31]} 7. N1f3 {[%emt 0:02:17]} Bd6 {[%emt 0:06:09]} 8. O-O {[%emt 0:07:28]} h6 {[%emt 0:01:14]} 9. Ne4 {[%emt 0:00:38]} Nxe4 {[%emt 0:00:07]} 10. Bxe4 {[%emt 0:00:03]} Nf6 {[%emt 0:00:15]} 11. Bd3 {[%emt 0:00:07]} O-O {[%emt 0:00:20]} 12. c3 {[%emt 0:05:04]} c5 {[%emt 0:08:23]} 13. Qe2 {[%emt 0:06:11]} b6 {[%emt 0:05:45]} 14. dxc5 {[%emt 0:04:02]} Bxc5 {[%emt 0:00:34]} 15. Bf4 {[%emt 0:01:50]} Bd6 {[%emt 0:17:56]} 16. Ne5 {[%emt 0:12:38]} Bb7 {[%emt 0:03:10]} 17. Rad1 {[%emt 0:02:36]} Qc7 {[%emt 0:00:24]} 18. Bc2 {[%emt 0:05:00]} Rad8 {[%emt 0:07:01]} 19. Rfe1 {[%emt 0:06:21]} Bd5 {[%emt 0:08:17]} 20. Bg3 {[%emt 0:07:57]} Qb7 {[%emt 0:05:52]} 21. Bh4 {[%emt 0:08:25]} g5 {[%emt 0:10:12]} 22. Qe3 {[%emt 0:10:49]} Bxg2 {[%emt 0:09:20]} 23. Bxg5 {[%emt 0:03:07]} Bxe5 {[%emt 0:02:41]} 24. Rxd8 {[%emt 0:03:21]} Bxh2+ {[%emt 0:00:41]} 25. Kxh2 {[%emt 0:00:09]} Ng4+ {[%emt 0:00:01]} 26. Kg1 {[%emt 0:01:58]} Nxe3 {[%emt 0:00:01]} 27. Rxf8+ {[%emt 0:00:45]} Kxf8 {[%emt 0:00:02]} 28. Bxh6+ {[%emt 0:00:08]} Ke7 {[%emt 0:01:11]} 29. Rxe3 {[%emt 0:00:45]} Bd5 {[%emt 0:00:27]} 30. Bg5+ {[%emt 0:01:39]} f6 {[%emt 0:02:12]} 31. Bh4 {[%emt 0:03:53]} Qc8 {[%emt 0:00:40]} 32. b3 {[%emt 0:02:34]} Qh8 {[%emt 0:01:27]} 33. Rh3 {[%emt 0:00:06]} Qh6 {[%emt 0:00:14]} 34. Bd3 {[%emt 0:01:33]} Qc1+ {[%emt 0:00:12]} 35. Bf1 {[%emt 0:00:05]} e5 {[%emt 0:00:58]} 36. c4 {[%emt 0:01:26]} Bc6 {[%emt 0:00:04]} 37. Re3 {[%emt 0:00:36]} Ke6 {[%emt 0:00:04]} 38. Re2 {[%emt 0:00:54]} Qh6 {[%emt 0:00:30]} 0-1